Cogmind - Beta 13 @@@ ROGUE MODE // 2024.04.25 @ 08:34:38 Player: Jaegerpls Result: Destroyed by G-47 Trooper with Particle Gun Performance ------------- Evolutions (3) 1500 Regions Visited (7) 1400 Robots Destroyed (146) 730 Value Destroyed (4364) 4364 Prototype IDs (32) 640 Alien Tech Used (0) 0 Bonus (578) 578 TOTAL SCORE: 9212 Bonus ------- High Alert Combat Kills 340 Aligned with FarCom 300 Friendly Fire -62 Cogmind --------- Core Integrity 0/700 Matter 251/300 Energy 1580/1600 System Corruption 9% Temperature Hot (220) Movement Core (800) Ox15 Location -7/Factory Parts ------- > --- POWER (2) -------- (None) > --- PROPULSION (4) --- (None) > --- UTILITY (5) ------ High-capacity Storage Unit Superbattery Signal Interpreter > --- WEAPON (2) ------- Improved Medium Laser > --- INVENTORY (20) --- Improved Heat Sink Improved Heat Sink Improved Heat Sink Sensor Array Hardened Light Armor Plating Medium Reactive Plating Dynamic Insulation System Improved Medium Laser Heavy Particle Cannon Improved Datajack Remote Datajack Plasma Cutter Peak State ------------ > --- POWER ------------ Micro Nuclear Core Micro Nuclear Core > --- PROPULSION ------- Armored Treads Armored Treads Armored Treads Armored Treads > --- UTILITY ---------- High-capacity Storage Unit Superbattery Signal Interpreter Medium Reactive Plating Shield Generator > --- WEAPON ----------- Flak Gun Shock Bomb Launcher > --- INVENTORY -------- Micro Nuclear Core Micro Nuclear Core Improved Heat Sink Disposable Heat Sink Disposable Heat Sink Sensor Array Hardened Light Armor Plating Medium Reactive Plating Medium Reactive Plating Medium Reactive Plating Improved Medium Laser Improved Medium Laser Heavy Particle Gun Heavy Particle Cannon Heavy Particle Cannon Flak Cannon Improved Datajack Plasma Cutter [Rating: 50] Favorites ----------- Power Heavy Ion Engine Engine Heavy Ion Engine Power Core Micro Nuclear Core Propulsion Armored Treads Treads Armored Treads Leg Aluminum Leg Wheel Wheel Flight Unit VTOL Module Utility Signal Interpreter Device Sensor Array Storage Large Storage Unit Processor Signal Interpreter Protection Hardened Light Armor Plating Weapon Shock Bomb Launcher Energy Gun Particle Gun Energy Cannon Advanced Beam Cannon Ballistic Gun Flak Gun Ballistic Cannon Flak Cannon Launcher Shock Bomb Launcher Special Weapon Mining Laser Build | -11 -10 -9 -9 -9 -8 -8 -7 ------- Run | Yrd Mat Mat Min Exi Min Mat Fac Slots Evolved 6 | . . 2 . . . 2 2 Power 1 | . . . . . . . 1 Propulsion 2 | . . . . . . 1 1 Utility 3 | . . 2 . . . 1 . Weapon . | . . . . . . . . Parts Attached 147 | 9 22 55 . 4 1 31 25 Power 14 | 2 1 7 . . . 1 3 Engine 9 | 2 . 7 . . . . . Core 5 | . 1 . . . . 1 3 Reactor . | . . . . . . . . Propulsion 36 | 4 6 13 . . . 8 5 Treads 27 | 2 2 13 . . . 8 2 Leg 4 | 2 2 . . . . . . Wheel 4 | . 2 . . . . . 2 Hover . | . . . . . . . . Flight 1 | . . . . . . . 1 Utility 49 | 1 5 21 . 2 1 8 11 Device 26 | . 4 15 . . . 2 5 Storage 7 | 1 1 1 . 2 . 1 1 Processor 4 | . . 3 . . . . 1 Hackware . | . . . . . . . . Protection 12 | . . 2 . . 1 5 4 Artifact . | . . . . . . . . Weapon 48 | 2 10 14 . 2 . 14 6 Energy Gun 25 | 1 6 8 . . . 7 3 Energy Cannon 5 | . . 3 . . . 1 1 Ballistic Gun 5 | 1 1 . . . . 3 . Ballistic Cannon 5 | . . 2 . . . 1 2 Launcher 6 | . 1 1 . 2 . 2 . Special Weapon 2 | . 2 . . . . . . Impact Weapon . | . . . . . . . . Slashing Weapon . | . . . . . . . . Piercing Weapon . | . . . . . . . . Special Melee Weapon . | . . . . . . . . Unidentified Prototypes 5 | . . 2 . . . 3 . Corrupted Parts 3 | . . . . . . 3 . System Corruption 23 | . . . . . . 23 . Parts Lost 37 | . 1 11 . . . 4 21 Power 7 | . . 3 . . . . 4 Propulsion 11 | . . 5 . . . . 6 Utility 7 | . . 1 . . . 1 5 Weapon 12 | . 1 2 . . . 3 6 Highest Loss Streak 8 | . 1 4 . . . 1 8 To Critical Strikes . | . . . . . . . . Average Slot Usage (%) 95 | . 99 98 100 100 100 91 81 Engine 8 | . 9 10 11 11 11 8 . Core 2 | . 4 . . . . . 14 Treads 19 | . . 21 22 22 22 27 11 Wheel 3 | . 24 . . . . . 1 Device 8 | . 13 14 11 11 2 2 6 Storage 15 | . 14 13 11 16 22 18 15 Processor 8 | . . 11 11 11 11 9 7 Protection 6 | . . 5 11 5 8 8 6 Energy Gun 9 | . 22 14 22 11 . 2 4 Energy Cannon 2 | . . 6 . . . . 2 Ballistic Gun 1 | . 1 . . . . 4 4 Ballistic Cannon 1 | . . . . . . 3 1 Launcher 5 | . . . . 10 22 7 . Naked Turns . | . . . . . . . . Heaviest Build 88 | 13 32 51 40 65 69 79 88 Greatest Support 80 | 40 20 40 40 40 40 60 80 Greatest Overweight (x) 28 | 1 1 10 . 1 1 1 28 Average Overweight (x) . | . . . . . 1 . 4 Largest Inventory Capacity 20 | 8 15 15 15 20 20 20 20 Average Capacity 17 | 7 14 15 15 15 20 20 20 Most Carried 20 | 6 15 15 15 15 18 20 20 Average Carried 15 | 3 12 14 15 14 16 18 16 Final Capacity 20 | 8 15 15 15 20 20 20 20 Final Carried 20 | 6 15 15 15 15 18 20 12 Class Distribution -------------------- 85% | Mutant 10% | Scavenger-Mutant Dominant Class ---------------- Mutant | -10/Materials Mutant | -9/Materials Mutant | -9/Mines Mutant | -9/Exiles Mutant | -8/Mines Mutant | -8/Materials Mutant | -7/Factory Resources | -11 -10 -9 -9 -9 -8 -8 -7 ----------- Run | Yrd Mat Mat Min Exi Min Mat Fac Matter Collected 2805 | 188 345 561 . . 262 890 559 Remotely . | . . . . . . . . Salvage Created 5208 | . 354 1548 . . 739 1825 742 Parts 285 | . 29 90 . . 30 98 38 Haulers Intercepted 1 | . . . . . . 1 . Recyclers Shooed 4 | . . 3 . . . 1 . Parts Field Recycled 25 | . . 25 . . . . . Retrieved Matter 150 | . . 150 . . . . . Parts Self-Destructed . | . . . . . . . . Prevented . | . . . . . . . . Kills | -11 -10 -9 -9 -9 -8 -8 -7 ------- Run | Yrd Mat Mat Min Exi Min Mat Fac Combat Hostiles Destroyed 104 | . 9 30 . . 12 33 20 Guns 43 | . 7 15 . . . 8 13 Cannons 25 | . . 12 . . . 6 7 AOE 31 | . 2 1 . . 10 18 . Classes Destroyed 16 | . 4 4 . . 2 4 2 Worker 12 | . . 2 . . 2 5 3 Builder 6 | . . . . . . 5 1 Tunneler 2 | . . . . . . 1 1 Hauler 1 | . . . . . . 1 . Recycler 6 | . . 3 . . 1 2 . Operator 2 | . 1 1 . . . . . Watcher 12 | . 3 5 . . . 4 . Swarmer 24 | . 3 4 . . 3 12 2 Grunt 54 | . 6 17 . . 7 15 9 Brawler 3 | . . 1 . . 1 . 1 Duelist 1 | . . . . . 1 . . Sentry 15 | . . 8 . . . 5 2 Specialist 2 | . . . . . . . 2 Programmer 3 | . . . . . . . 3 Heavy 2 | . . . . . . 1 1 Zionite 1 | . . . . . 1 . . Best Kill Streak 10 | . 3 5 . . 5 10 4 Combat Bots Only 6 | . 3 4 . . 3 6 4 Max Kills in Single Turn 5 | . 2 2 . . 4 5 2 Gunslinging 1 | . 1 1 . . . . . Exploded 3 | . 2 1 . . 3 3 . Melee . | . . . . . . . . Uniques/NPCs Destroyed . | . . . . . . . . Combat | -11 -10 -9 -9 -9 -8 -8 -7 -------- Run | Yrd Mat Mat Min Exi Min Mat Fac Hostile Shots Fired 789 | . 44 164 . . 21 125 435 Missed 234 | . 16 40 . . 5 24 149 Damage Taken 7437 | . 305 1844 . . 303 1593 3392 Core 1222 | . 74 236 . . 68 142 702 Absorbed by Shields 368 | . . . . . . 219 149 Redirected to Shielding 7 | . . . . . . 7 . Ignored by Resistances 326 | . . . . . . . 326 Regen/Repaired (Parts) 286 | . . 286 . . . . . Core Remaining (%) 67 | 100 70 . . . 24 74 . Volleys Fired 341 | . 53 112 . . 16 80 80 Largest 2 | . 2 2 . . 2 2 2 Hottest 200 | . 200 136 . . 72 100 130 Shots Fired 652 | . 105 218 . 1 33 146 149 Gun 362 | . 88 124 . . . 51 99 Cannon 173 | . . 92 . . . 33 48 Launcher 101 | . 1 2 . 1 33 62 2 Special 16 | . 16 . . . . . . Kinetic 147 | . 6 6 . . . 54 81 Thermal 389 | . 98 210 . . . 15 66 Explosive 3 | . 1 2 . . . . . Electromagnetic 113 | . . . . 1 33 77 2 Robot Hit Streak 14 | . 6 14 . . 6 11 10 Robot Miss Streak 11 | . 5 7 . . 4 11 7 Penetration Max . | . . . . . . . . Secondary Targets 5 | . 1 3 . . . . 1 Max Gunslinging Chain 1 | . 1 1 . . . . 1 Shots Hit Robots 419 | . 52 138 . . 19 85 125 Core Hits 295 | . 23 57 . . 23 90 102 Critical Kills . | . . . . . . . . Critical Parts Destroyed . | . . . . . . . . Critical Strikes 9 | . . 8 . . . . 1 Burn 9 | . . 8 . . . . 1 Melee Attacks . | . . . . . . . . Impact . | . . . . . . . . Slashing . | . . . . . . . . Piercing . | . . . . . . . . Sneak Attacks . | . . . . . . . . Combat Hostiles . | . . . . . . . . Follow-up Attacks . | . . . . . . . . Damage Inflicted 10827 | . 684 2531 . . 1207 3816 2589 Guns 4168 | . 613 1359 . . . 546 1650 Cannons 2367 | . . 1090 . . . 428 849 Explosions 4285 | . 71 82 . . 1200 2842 90 Melee . | . . . . . . . . Ramming 7 | . . . . . 7 . . Kinetic 2138 | . 73 90 . . . 609 1366 Thermal 4724 | . 540 2359 . . 166 526 1133 Explosive 509 | . 71 82 . . . 356 . Electromagnetic 3449 | . . . . . 1034 2325 90 Impact . | . . . . . . . . Slashing . | . . . . . . . . Piercing . | . . . . . . . . Highest Corruption 26 | . . 2 2 2 2 26 9 Average Corruption 2 | . . 2 2 2 2 3 4 Corruption Purged . | . . . . . . . . Corruption Blocked . | . . . . . . . . Effects 69 | . . 8 5 10 9 19 18 Message Errors 15 | . . 2 2 . 1 4 6 Matter Fused 13 | . . 2 . 3 2 4 2 Heat Flow Errors 7 | . . . . . 2 2 3 Energy Discharges 8 | . . 2 1 2 . 1 2 Parts Rejected 2 | . . . . . . 2 . Parts Fused 1 | . . . . 1 . . . Data Loss (minor) 12 | . . 1 1 3 2 3 2 Data Loss (major) 5 | . . . 1 . 1 2 1 Misfires 5 | . . 1 . 1 1 1 1 Weapon Failures 1 | . . . . . . . 1 Overload Shots . | . . . . . . . . Overflow Damage 126 | . . 38 . . 30 58 . Projectiles 27 | . . 27 . . . . . Explosions 99 | . . 11 . . 30 58 . Melee . | . . . . . . . . Knockbacks 31 | . . . . . . 9 22 Impact . | . . . . . . . . Kinetic 30 | . . . . . . 9 21 Secondary 1 | . . . . . . . 1 Self-Inflicted Damage 345 | . . . . . 65 259 21 Shots 24 | . . . . . 6 17 1 Rammed 1 | . . . . . 1 . . Targets Rammed 1 | . . . . . 1 . . Kicked . | . . . . . . . . Crushed . | . . . . . . . . Highest Temperature 407 | . 206 366 . . 168 314 407 Average Temperature 96 | . 51 92 . . 75 88 125 Received Heat Transfer 2670 | . 117 654 . . 180 513 1206 Effects 3 | . . . . . . . 3 Shutdowns 2 | . . . . . . . 2 Energy Bleed 1 | . . . . . . . 1 Siege Activations . | . . . . . . . . Robots Corrupted 3 | . . . . . 2 1 . Combat Hostiles 3 | . . . . . 2 1 . Parts Fried 18 | . . . . . 7 11 . Impact Corruptions . | . . . . . . . . Robots Melted 2 | . . 2 . . . . . Combat Hostiles 2 | . . 2 . . . . . Parts Melted 24 | . 2 12 . . . 2 8 Heat Transferred 9854 | . 1249 5661 . . 200 746 1998 Parts Sabotaged . | . . . . . . . . Parts Stolen . | . . . . . . . . Parts Stripped . | . . . . . . . . Power Chain Reactions 14 | . . . . . 6 8 . Alert | -11 -10 -9 -9 -9 -8 -8 -7 ------- Run | Yrd Mat Mat Min Exi Min Mat Fac Peak Influence 799 | . 236 361 91 . 170 799 538 Initial 326 | . . 22 91 . . 22 326 Average 210 | . 103 139 91 . 57 400 420 Maximum Alert Level 3 | . 1 1 . . . 3 2 Low Security (%) 61 | 100 79 82 100 . 100 17 . Level 1 18 | . 20 17 . . . 23 39 Level 2 17 | . . . . . . 45 60 Level 3 2 | . . . . . . 13 . Level 4 . | . . . . . . . . Level 5 . | . . . . . . . . High Security . | . . . . . . . . Max Security . | . . . . . . . . Squads Dispatched 23 | . 2 5 . . . 6 10 Investigation 8 | . 2 2 . . . 3 1 Extermination 2 | . . . . . . . 2 Reinforcement 9 | . . 3 . . . 3 3 Assault . | . . . . . . . . Garrison 4 | . . . . . . . 4 Intercept . | . . . . . . . . Searches Triggered . | . . . . . . . . Construction Impeded 2 | . . . . . . 1 1 Haulers Reinforced . | . . . . . . . . Active Scanning Responses . | . . . . . . . . Cargo Convoy Interrupts . | . . . . . . . . Stealth | -11 -10 -9 -9 -9 -8 -8 -7 --------- Run | Yrd Mat Mat Min Exi Min Mat Fac Distress Signals 8 | . 2 5 . . . 1 . Communications Jammed . | . . . . . . . . Distress Signals . | . . . . . . . . Times Spotted 152 | . 17 52 . . 13 42 28 Peak Tracking Total 6 | . 5 6 . . 3 6 6 Tactical Retreats 3 | . . 1 . . 1 1 . Traps | -11 -10 -9 -9 -9 -8 -8 -7 ------- Run | Yrd Mat Mat Min Exi Min Mat Fac Traps Triggered 5 | . 1 2 . . . 2 . Indirectly 1 | . . . . . . 1 . Trap Hack Attempts . | . . . . . . . . Triggered . | . . . . . . . . Disarmed . | . . . . . . . . Reprogrammed 6 | . . 6 . . . . . Reused . | . . . . . . . . Traps Extracted . | . . . . . . . . Installed . | . . . . . . . . Triggered . | . . . . . . . . Machines | -11 -10 -9 -9 -9 -8 -8 -7 ---------- Run | Yrd Mat Mat Min Exi Min Mat Fac Machines Disabled 14 | . . 2 . . . 12 . Max in Single Turn 2 | . . 1 . . . 2 . Machines Repaired . | . . . . . . . . Machines Dismantled . | . . . . . . . . Machines Sabotaged . | . . . . . . . . Overloaded Fab Kills . | . . . . . . . . Hacking | -11 -10 -9 -9 -9 -8 -8 -7 --------- Run | Yrd Mat Mat Min Exi Min Mat Fac Machines Accessed 29 | . 7 14 . 1 1 5 1 Terminals 20 | . 6 8 . . 1 4 1 Fabricators . | . . . . . . . . Repair Stations 2 | . . 2 . . . . . Recycling Units 3 | . 1 2 . . . . . Scanalyzers 3 | . . 2 . . . 1 . Garrison Access . | . . . . . . . . Total Hacks 104 | . 15 59 . 1 4 22 3 Successful 68 | . 9 42 . 1 2 12 2 Failed 36 | . 6 17 . . 2 10 1 Catastrophic 8 | . 4 2 . . 1 1 . Database Lockouts . | . . . . . . . . Manual 1 | . . . . 1 . . . Terminals 77 | . 14 37 . . 4 19 3 Fabricators . | . . . . . . . . Repair Stations 11 | . . 11 . . . . . Recycling Units 4 | . 1 3 . . . . . Scanalyzers 11 | . . 8 . . . 3 . Garrison Access . | . . . . . . . . Terminal Hacks 46 | . 8 24 . 1 2 9 2 Record 18 | . 4 10 . . . 2 2 Robot Analysis 3 | . . 2 . . . 1 . Prototype ID Bank 2 | . 2 . . . . . . Emergency Access Points 3 | . . 2 . . . 1 . Alert Level 2 | . . 2 . . . . . Unreport Threat 1 | . . 1 . . . . . Locate Traps 4 | . 1 1 . . . 2 . Reprogram Traps 1 | . . 1 . . . . . Maintenance Status 2 | . 1 . . . . 1 . Transport Status 1 | . . 1 . . . . . Recall Investigation 1 | . . . . . 1 . . Hauler Manifests 2 | . . 1 . . . 1 . Registered Components 1 | . . 1 . . . . . Zone Layout 4 | . . 2 . . 1 1 . Derelict Proto ID Bank 1 | . . . . 1 . . . Fabricator Hacks . | . . . . . . . . Repair Station Hacks 9 | . . 9 . . . . . Scan Component 5 | . . 5 . . . . . Repair 4 | . . 4 . . . . . Recycling Unit Hacks 4 | . 1 3 . . . . . Report Inventory 3 | . 1 2 . . . . . Retrieve Components 1 | . . 1 . . . . . Scanalyzer 9 | . . 6 . . . 3 . Insert Component 4 | . . 3 . . . 1 . Analyze 5 | . . 3 . . . 2 . Garrison Access Hacks . | . . . . . . . . Unauthorized Hacks . | . . . . . . . . Terminals . | . . . . . . . . Fabricators . | . . . . . . . . Repair Stations . | . . . . . . . . Recycling Units . | . . . . . . . . Scanalyzers . | . . . . . . . . Garrison Access . | . . . . . . . . Data Cores Recovered 1 | . 1 . . . . . . Used . | . . . . . . . . Hacking Detections 21 | . 5 9 . . 1 5 1 Full Trace Events 7 | . 1 3 . . . 2 1 Feedback Events . | . . . . . . . . Feedback Blocked . | . . . . . . . . Robot Schematics Acquired . | . . . . . . . . Robots Built . | . . . . . . . . Authchips . | . . . . . . . . Time . | . . . . . . . . Total Robot Build Rating . | . . . . . . . . Part Schematics Acquired 4 | . . 3 . . . 1 . Parts Built . | . . . . . . . . Authchips . | . . . . . . . . Time . | . . . . . . . . Total Part Build Rating . | . . . . . . . . Parts Repaired 4 | . . 4 . . . . . Time 173 | . . 173 . . . . . Parts Recycled . | . . . . . . . . Recycled Matter . | . . . . . . . . Retrieved Matter . | . . . . . . . . Retrieved Components 9 | . . 9 . . . . . Parts Scanalyzed 4 | . . 3 . . . 1 . Part Schematics Acquired 4 | . . 3 . . . 1 . Parts Damaged . | . . . . . . . . Bothacking | -11 -10 -9 -9 -9 -8 -8 -7 ------------ Run | Yrd Mat Mat Min Exi Min Mat Fac Used RIF Installer . | . . . . . . . . Robots Hacked . | . . . . . . . . Non-combat . | . . . . . . . . Combat . | . . . . . . . . Robot Hacks Applied . | . . . . . . . . Relay Couplers Released . | . . . . . . . . Fabnet Peak Effective % . | . . . . . . . . Robots Rewired . | . . . . . . . . Allies Hacked . | . . . . . . . . Hacks Repelled . | . . . . . . . . Allies | -11 -10 -9 -9 -9 -8 -8 -7 -------- Run | Yrd Mat Mat Min Exi Min Mat Fac Total Allies . | . . . . . . . . Largest Group . | . . . . . . . . Highest-Rated Group . | . . . . . . . . Highest-Rated Ally . | . . . . . . . . Total Orders . | . . . . . . . . Ally Attacks . | . . . . . . . . Total Damage . | . . . . . . . . Kills . | . . . . . . . . Allies Corrupted . | . . . . . . . . Allies Melted . | . . . . . . . . Intel | -11 -10 -9 -9 -9 -8 -8 -7 ------- Run | Yrd Mat Mat Min Exi Min Mat Fac Robot Analysis Total 3 | . . 2 . . . 1 . Derelict Logs Recovered 2 | . . . 2 . . . . Drone Launches . | . . . . . . . . Drone Recoveries . | . . . . . . . . Exploration | -11 -10 -9 -9 -9 -8 -8 -7 ------------- Run | Yrd Mat Mat Min Exi Min Mat Fac Turns Passed 8861 | 92 948 2744 354 731 1231 1725 1036 Spaces Moved 3720 | 43 701 1220 208 318 468 557 205 Core 24 | 3 . 1 . . . . 20 Treads 2894 | 22 . 1186 208 318 468 557 135 Legs 74 | 18 56 . . . . . . Wheels 727 | . 645 33 . . . . 49 Hover . | . . . . . . . . Flight 1 | . . . . . . . 1 Fastest Speed 50 | 50 95 95 170 170 250 170 140 Average Speed 191 | 137 96 169 170 203 250 249 360 Slowest Speed 1715 | 160 120 550 170 250 250 250 1715 Overloaded Moves . | . . . . . . . . Propulsion Burnouts . | . . . . . . . . Robots Hopped . | . . . . . . . . Cave-ins Triggered . | . . . . . . . . Exploration Rate (%) 55 | 5 90 91 67 63 76 51 4 Regions Visited 7 Branch Regions 3 Pre-discovered Areas . | . . . . . . . . Known Exits Taken 5 | . . 1 1 1 1 1 . Unknown Exits Taken 2 | 1 1 . . . . . . Scrap Searched 3 | . . . 2 . 1 . . Spaces Dug 14 | . 13 . . . . 1 . Terrain Destroyed 126 | . 24 15 . . 28 58 1 Melee . | . . . . . . . . Projectile 18 | . 15 . . . . 2 1 AOE 108 | . 9 15 . . 28 56 . Terrain Rammed . | . . . . . . . . Walls Destroyed . | . . . . . . . . Machines Disabled . | . . . . . . . . Actions | -11 -10 -9 -9 -9 -8 -8 -7 --------- Run | Yrd Mat Mat Min Exi Min Mat Fac Total 4796 | 71 828 1681 209 403 497 755 352 Wait 424 | 14 26 224 . 79 6 44 31 Move 3713 | 42 700 1219 207 317 467 556 205 Hop . | . . . . . . . . Pick Up 93 | 6 15 35 1 1 4 23 8 Fast Attach 27 | 6 1 9 . . . 7 4 Attach 39 | . 1 14 . . . 9 15 Detach 1 | . . . . . . 1 . Swap 81 | 3 20 32 . 4 1 15 6 Drop 76 | . 12 36 1 2 2 20 3 Fire 341 | . 53 112 . . 16 80 80 Melee . | . . . . . . . . Ram . | . . . . . . . . Kick . | . . . . . . . . Crush 1 | . . . . . 1 . . Escape Stasis . | . . . . . . . . Rewire . | . . . . . . . . Trap . | . . . . . . . . Miscellaneous . | . . . . . . . . Route ------- -11/Scrapyard -10/Materials (discovered 4 exits: *Mat x3 / [*Min]) -9/Materials (discovered 5 exits: *Mat x2 / *Min x2 / [*Sto]) -9/Mines (discovered 2 exits: *Mat / *Exi) -9/Exiles (discovered 2 exits: *Min x2) -8/Mines -8/Materials (discovered 3 exits: *Fac x3) -7/Factory History --------- Turn | Location | Event 21 | -11/Scrapyard | Discovered new exit (range 16) 93 | -11/Scrapyard | Entered Materials 226 | -10/Materials | Discovered new exit (range 11) 311 | -10/Materials | Build established: Mutant 675 | -10/Materials | Discovered new exit (range 15) 748 | -10/Materials | Discovered new exit (range 16) 832 | -10/Materials | Discovered new exit (range 8) 1041 | -10/Materials | Entered another Materials area 1041 | -9/Materials | Evolved 2 slots: Utility x2 1157 | -9/Materials | Discovered new exit (range 9) 1195 | -9/Materials | Identified exit to Mines 1392 | -9/Materials | Lost 4 parts (1p1n1u1w) 1440 | -9/Materials | Discovered exit to Mines (range 15) 1930 | -9/Materials | Lost 4 parts (1p2n1w) 2046 | -9/Materials | Discovered new exit (range 4) 2051 | -9/Materials | Identified exit to Materials 2173 | -9/Materials | Build established: Scavenger-Mutant 2298 | -9/Materials | Core integrity fell below 50% 2448 | -9/Materials | Repaired Lgt. Treads 2621 | -9/Materials | Build established: Mutant 2815 | -9/Materials | Discovered new exit (range 13) 2906 | -9/Materials | Discovered exit to Materials (range 15) 3456 | -9/Materials | Repaired Hvy. Ion Engine 3503 | -9/Materials | Repaired Hrd. Light Armor Plating 3568 | -9/Materials | Repaired Broken Adv. Beam Cannon 3785 | -9/Materials | Entered Mines 4044 | -9/Mines | Learned Materials stockpile data 4046 | -9/Mines | Discovered exit to Materials (range 10) 4057 | -9/Mines | Learned 2 Materials zone layouts 4130 | -9/Mines | Deemed a non-threat by the Exiles lab entrance 4130 | -9/Mines | Discovered new exit (range 5) 4135 | -9/Mines | Identified exit to Exiles 4139 | -9/Mines | Entered Exiles 4163 | -9/Exiles | Discovered new exit (range 15) 4185 | -9/Exiles | Identified exit to Mines 4221 | -9/Exiles | Met 8R-AWN 4250 | -9/Exiles | Met EX-HEX 4332 | -9/Exiles | Met EX-DEC 4379 | -9/Exiles | Met EX-BIN 4398 | -9/Exiles | Aligned with FarCom system 4400 | -9/Exiles | Given EX-Vault access code 4442 | -9/Exiles | Opened EX-Vault 4454 | -9/Exiles | Found Superbattery 4589 | -9/Exiles | Warned to stay clear of 0b10 Research branches 4622 | -9/Exiles | Exiles lab attacked by MAIN.C 4835 | -9/Exiles | Discovered exit to Mines (range 15) 4870 | -9/Exiles | Left Exiles lab with Superbattery 4870 | -9/Exiles | Entered Mines 5518 | -8/Mines | Discovered exit to Materials (range 11) 6101 | -8/Mines | Entered Materials 6101 | -8/Materials | Evolved 2 slots: Propulsion x1, Utility x1 6102 | -8/Materials | Identified exit to Factory 6654 | -8/Materials | Discovered exit to Factory (range 7) 7689 | -8/Materials | Discovered exit to Factory (range 8) 7720 | -8/Materials | System corruption reached 10% 7826 | -8/Materials | Entered Factory 7826 | -7/Factory | Evolved 2 slots: Power x1, Propulsion x1 8245 | -7/Factory | Garrison activated, responded to threat 8487 | -7/Factory | Core integrity fell below 50% 8514 | -7/Factory | Lost 8 parts (2p3n1u2w) 8850 | -7/Factory | Core integrity fell below 20% 8855 | -7/Factory | Garrison activated, responded to threat 8862 | -7/Factory | Destroyed by G-47 Trooper with Particle Gun Last Messages --------------- 08833_ Acquired VTOL Module. 08835_ Acquired 19 matter. 08844_ Med. Reactive Plating destroyed. 08845_ Hvy. Particle Cannon destroyed. 08847_ Disposable Heat Sink destroyed. 08848_ Mic. Nuclear Core destroyed. 08849_ R-06 Scavenger collects Target Analyzer. 08853_ R-06 Scavenger collects Remote Datajack. 08855_ VTOL Module destroyed. 08855_ B-48 Gladiator calls for garrison reinforcements. 08855_ ALERT: Activating Garrison Access F003. 08855_ Critical hit (Burn: +37). 08857_ System corrupted: Heat flow error (+126). 08857_ Hvy. Particle Gun destroyed. 08857_ Critical hit (Burn: +37). 08859_ Mic. Nuclear Core destroyed. 08859_ System corrupted by crushing effect (+2). 08860_ B-48 Gladiator destroyed. 08861_ Flak Cannon destroyed. Map ----- +----------------------------------------------------+ | ????????????????????????????????????????????????# | | ????????????????????????????????????????????????# | | ????????????????????????????????????????????????# | | ????????????????????????????????????????????????+ | | ????????????????????????????????????????????????# | | ????????????????????????????????????????????????# | | ????????????????????????????????????????????????# | | ????????????????????????????????????????????????# | | ????????????????????????????????????????????????# | | ????????????????????????????????????????????????# | | ????????????????????????????????????????????????# | | ????????????????????????????????????????????????# | | ???????????????????????????????????????????###### | | ?????????????????????????????????????# | | ?????????????????????????????????????? ####### | | ??????????????????????###????????????? ??# | | ?????????????????????? ?? ????????# #??# | | ??????????????????""g?" "" "" ?????# #??# | | ???????????????# "Gg "" "" "" ?????# ##?# | | ???????????????# """ """ """ """ #???# T#?# | | ????????????????? """ """ """ ????# ??# | | ??????????????????? """ """ """??????# #??# | | ??????????#####??? % ????????# #??# | | ????????### # [ % ??????????# #??# | | ???????##################/#+###???????# #??# | | ???????# # !!@% #?????### #### | | ???????# %*# [%= ####### ## | | ???????# % # *! ###+## | | ???????# # !%* g | | ???????# + T / g % | | ???????# # %! g w | | ???????# # %= ###### | | ???????# # r ####### #????? | | ???????# # #?????## ##????? | | ???????# ## ##??????# #?????? | | ???????# ## #???????# #?????? | | ???????# ## u #???????# #?????? | | ???????############### #???????# #?????? | | ???????????? ???#p #???????# #?????? | | ???????????? ????# #???????# #?????? | | ???????????? ? ?????# #???????# #?????? | | ???????????? ???????# #???????# #?????? | | ?????????????????????# #???????# #?????? | | ?????????????????????# #???????? #?????? | | ?????????????????????# #???????? ???????? | | ????????????????????? #???????????????????? | | ?????????????????????? ?????????????????????? | | ?????????????????????????????????????????????????? | | ?????????????????????????????????????????????????? | | ?????????????????????????????????????????????????? | +----------------------------------------------------+ Best States ------------- Heat Dissipation 52 Coolant Potential 50 Energy Generation 25 Energy Capacity 1780 Matter Stores 300 Matter Capacity 300 Sight Range 16 Robot Scan Range 14 Terrain Scan Density 10 Armor Coverage 600 Resistance: KI 30 Utility Shielding 66 Evasion (%) 55 Recoil Reduction 4 Item Schematics ----------------- Particle Gun | -9/Materials | Scanalyzed Adv. Beam Cannon | -9/Materials | Scanalyzed Imp. Ion Engine | -9/Materials | Scanalyzed Arm. Treads | -8/Materials | Scanalyzed Robot Schematics ------------------ None Fabricated ------------ Nothing Alien Tech Used ----------------- None Achievements -------------- Armchair Analyst More Dakka Please Oops Shopping List Challenges ------------ None Game ------ Seed SmartbombIntegrityFlakker Manual? 0 Play Time 01:32:31 Cumulative 11.5 hours Start 2024.04.25 @ 07:00:33 End 2024.04.25 @ 08:34:38 Sessions 1 Manual Loads 0 Difficulty Rogue Special Mode None Game No. 7 Rogue 7 Adventurer 0 Explorer 0 Win Type - Total 0 Types 0/0/0/0/0/0/0/0/0 Lore% 16 Gallery% 18 Achievement% 17 Wizard Run 0 Options --------- Layout 1 ASCII 0 Keyboard 0 Movement Mouse Keybinds 0 Fullscreen 2 Font 32/Smallcaps Map View 50x35 Zoom Use 0% Tactical HUD 1 Map Filters NONE Filters NONE Steam 1 RUN: 84e2bd3a-3aee-49b5-962d-294010dc3faf